[Event "Titled Tuesday Blitz December 27 Early 2022"]
[White "Tworuszka, Michal"]
[Black "Savic, Miroslav"]
[WhiteFideId "1117858"]
[BlackFideId "14508494"]
[WhiteElo "2260"]
[BlackElo "2167"]
[Result "1-0"]
[Round "05"]
[TimeControl "180+2"]
[Date "2022.12.27"]
[WhiteClock "0:00:09"]
[BlackClock "0:00:01"]

1. e4 {[%clk 0:03:00]}  c5 {[%clk 0:02:57]} 2. Nf3 {[%clk 0:03:00]}  d6 {[%clk 0:02:57]} 3. d4 {[%clk 0:02:59]}  cxd4 {[%clk 0:02:57]} 4. Nxd4 {[%clk 0:02:59]}  Nf6 {[%clk 0:02:58]} 5. Nc3 {[%clk 0:03:00]}  a6 {[%clk 0:02:59]} 6. Be3 {[%clk 0:02:56]}  e5 {[%clk 0:02:59]} 7. Nb3 {[%clk 0:02:56]}  Be6 {[%clk 0:02:59]} 8. h3 {[%clk 0:02:56]}  Be7 {[%clk 0:02:59]} 9. g4 {[%clk 0:02:55]}  h6 {[%clk 0:02:54]} 10. Qd2 {[%clk 0:02:54]}  Qc7 {[%clk 0:02:50]} 11. O-O-O {[%clk 0:02:53]}  b5 {[%clk 0:02:44]} 12. Kb1 {[%clk 0:02:50]}  Nbd7 {[%clk 0:02:41]} 13. Bxb5 {[%clk 0:02:26]}  axb5 {[%clk 0:02:34]} 14. Nxb5 {[%clk 0:02:26]}  Qb7 {[%clk 0:02:15]} 15. Nxd6+ {[%clk 0:02:24]}  Bxd6 {[%clk 0:02:14]} 16. Qxd6 {[%clk 0:02:24]}  Nxe4 {[%clk 0:02:09]} 17. Qd3 {[%clk 0:02:14]}  O-O {[%clk 0:02:06]} 18. f3 {[%clk 0:02:02]}  Nef6 {[%clk 0:01:49]} 19. Rhg1 {[%clk 0:02:00]}  Qxf3 {[%clk 0:01:45]} 20. g5 {[%clk 0:01:53]}  hxg5 {[%clk 0:01:44]} 21. Rxg5 {[%clk 0:01:53]}  e4 {[%clk 0:01:37]} 22. Qd2 {[%clk 0:01:45]}  Rfd8 {[%clk 0:01:27]} 23. Rdg1 {[%clk 0:01:30]}  g6 {[%clk 0:01:20]} 24. Nd4 {[%clk 0:01:30]}  Qxh3 {[%clk 0:01:19]} 25. R5g3 {[%clk 0:01:24]}  Qh7 {[%clk 0:00:57]} 26. Nxe6 {[%clk 0:01:22]}  fxe6 {[%clk 0:00:55]} 27. Rxg6+ {[%clk 0:01:22]}  Kf7 {[%clk 0:00:55]} 28. Bh6 {[%clk 0:00:47]}  Rg8 {[%clk 0:00:45]} 29. Rg7+ {[%clk 0:00:42]}  Rxg7 {[%clk 0:00:44]} 30. Rxg7+ {[%clk 0:00:42]}  Qxg7 {[%clk 0:00:44]} 31. Bxg7 {[%clk 0:00:42]}  Kxg7 {[%clk 0:00:44]} 32. c4 {[%clk 0:00:39]}  Ne5 {[%clk 0:00:25]} 33. Qg5+ {[%clk 0:00:36]}  Ng6 {[%clk 0:00:24]} 34. c5 {[%clk 0:00:32]}  Rh8 {[%clk 0:00:21]} 35. b4 {[%clk 0:00:30]}  Nd5 {[%clk 0:00:15]} 36. a3 {[%clk 0:00:26]}  Rh2 {[%clk 0:00:12]} 37. c6 {[%clk 0:00:25]}  e3 {[%clk 0:00:12]} 38. Qg4 {[%clk 0:00:16]}  e2 {[%clk 0:00:09]} 39. Qd4+ {[%clk 0:00:14]}  Kf7 {[%clk 0:00:07]} 40. Qg1 {[%clk 0:00:11]}  Nc3+ {[%clk 0:00:05]} 41. Kc1 {[%clk 0:00:10]}  Rh5 {[%clk 0:00:01]} 42. c7 {[%clk 0:00:09]} 1-0


[Site "https://www.chess.com"]

[Event "Titled Tuesday Blitz December 27 Early 2022"]
[White "Vasques, Antonio Pedro Freixial"]
[Black "Sailer, Mike"]
[WhiteFideId "1908332"]
[BlackFideId "2012901"]
[WhiteElo "2214"]
[BlackElo "2109"]
[Result "1-0"]
[Round "05"]
[TimeControl "180+2"]
[Date "2022.12.27"]
[WhiteClock "0:00:21"]
[BlackClock "0:00:02"]

1. e4 {[%clk 0:02:51]}  d5 {[%clk 0:02:59]} 2. exd5 {[%clk 0:02:51]}  Qxd5 {[%clk 0:02:59]} 3. Nc3 {[%clk 0:02:51]}  Qd6 {[%clk 0:02:59]} 4. Nf3 {[%clk 0:02:51]}  Nf6 {[%clk 0:03:00]} 5. Bc4 {[%clk 0:02:49]}  c6 {[%clk 0:02:59]} 6. d3 {[%clk 0:02:49]}  Bg4 {[%clk 0:02:55]} 7. Bg5 {[%clk 0:02:48]}  e6 {[%clk 0:02:53]} 8. h3 {[%clk 0:02:41]}  Bh5 {[%clk 0:02:47]} 9. g4 {[%clk 0:02:40]}  Bg6 {[%clk 0:02:47]} 10. Qd2 {[%clk 0:02:41]}  Be7 {[%clk 0:02:45]} 11. O-O-O {[%clk 0:02:33]}  Nbd7 {[%clk 0:02:41]} 12. Kb1 {[%clk 0:02:26]}  O-O-O {[%clk 0:02:31]} 13. Bf4 {[%clk 0:02:12]}  Qb4 {[%clk 0:02:24]} 14. a3 {[%clk 0:02:10]}  Qa5 {[%clk 0:02:15]} 15. Nd5 {[%clk 0:02:05]}  Qxd5 {[%clk 0:01:54]} 16. Bxd5 {[%clk 0:02:04]}  Nxd5 {[%clk 0:01:55]} 17. Bg3 {[%clk 0:01:56]}  h6 {[%clk 0:01:46]} 18. Qa5 {[%clk 0:01:49]}  Bc5 {[%clk 0:01:40]} 19. Ne5 {[%clk 0:01:34]}  Bb6 {[%clk 0:01:26]} 20. Qe1 {[%clk 0:01:31]}  Nxe5 {[%clk 0:01:20]} 21. Bxe5 {[%clk 0:01:29]}  f6 {[%clk 0:01:17]} 22. Bg3 {[%clk 0:01:29]}  e5 {[%clk 0:01:17]} 23. Rf1 {[%clk 0:01:23]}  Rhe8 {[%clk 0:01:00]} 24. Qd2 {[%clk 0:01:19]}  Bh7 {[%clk 0:00:54]} 25. f4 {[%clk 0:01:18]}  e4 {[%clk 0:00:48]} 26. dxe4 {[%clk 0:01:09]}  Ne3 {[%clk 0:00:48]} 27. Qe2 {[%clk 0:00:43]}  Nxd1 {[%clk 0:00:40]} 28. Rxd1 {[%clk 0:00:44]}  Rxd1+ {[%clk 0:00:40]} 29. Qxd1 {[%clk 0:00:45]}  Bxe4 {[%clk 0:00:39]} 30. Qd6 {[%clk 0:00:29]}  Bc7 {[%clk 0:00:28]} 31. Qc5 {[%clk 0:00:29]}  b6 {[%clk 0:00:23]} 32. Qc4 {[%clk 0:00:28]}  Bd5 {[%clk 0:00:22]} 33. Qc3 {[%clk 0:00:29]}  Re2 {[%clk 0:00:18]} 34. g5 {[%clk 0:00:24]}  hxg5 {[%clk 0:00:08]} 35. fxg5 {[%clk 0:00:25]}  Bxg3 {[%clk 0:00:04]} 36. Qxg3 {[%clk 0:00:26]}  Rg2 {[%clk 0:00:02]} 37. Qe3 {[%clk 0:00:21]} 1-0


[Site "https://www.chess.com"]

[Event "Titled Tuesday Blitz December 27 Early 2022"]
[White "Volkov, Maksim"]
[Black "Vakhlamov, Igor L."]
[WhiteFideId "54123070"]
[BlackFideId "24126748"]
[WhiteElo "2258"]
[BlackElo "2413"]
[Result "0-1"]
[Round "05"]
[TimeControl "180+2"]
[Date "2022.12.27"]
[WhiteClock "0:00:06"]
[BlackClock "0:00:14"]

1. d4 {[%clk 0:03:00]}  d5 {[%clk 0:02:59]} 2. c4 {[%clk 0:03:01]}  e6 {[%clk 0:03:00]} 3. Nf3 {[%clk 0:03:00]}  Nf6 {[%clk 0:03:00]} 4. g3 {[%clk 0:03:01]}  c5 {[%clk 0:03:00]} 5. cxd5 {[%clk 0:02:57]}  cxd4 {[%clk 0:03:00]} 6. dxe6 {[%clk 0:02:42]}  Bxe6 {[%clk 0:03:01]} 7. Qxd4 {[%clk 0:02:41]}  Nc6 {[%clk 0:03:01]} 8. Qa4 {[%clk 0:02:28]}  Bc5 {[%clk 0:02:55]} 9. Bg2 {[%clk 0:02:26]}  O-O {[%clk 0:02:55]} 10. O-O {[%clk 0:02:26]}  Qb6 {[%clk 0:02:53]} 11. Nc3 {[%clk 0:02:22]}  Rfe8 {[%clk 0:02:25]} 12. Bg5 {[%clk 0:01:59]}  Ng4 {[%clk 0:02:21]} 13. Ne4 {[%clk 0:01:55]}  Bf8 {[%clk 0:02:10]} 14. h3 {[%clk 0:01:45]}  Nge5 {[%clk 0:02:05]} 15. Nxe5 {[%clk 0:01:40]}  Nxe5 {[%clk 0:02:06]} 16. Be3 {[%clk 0:01:40]}  Qxb2 {[%clk 0:01:56]} 17. Bd4 {[%clk 0:01:39]}  Qxe2 {[%clk 0:00:49]} 18. Bxe5 {[%clk 0:01:39]}  Bxh3 {[%clk 0:00:37]} 19. Bxh3 {[%clk 0:00:56]}  Rxe5 {[%clk 0:00:37]} 20. Bg2 {[%clk 0:00:55]}  Rae8 {[%clk 0:00:35]} 21. Nc3 {[%clk 0:00:53]}  Qd3 {[%clk 0:00:33]} 22. Rac1 {[%clk 0:00:45]}  Bc5 {[%clk 0:00:29]} 23. Nd5 {[%clk 0:00:43]}  b6 {[%clk 0:00:22]} 24. Rcd1 {[%clk 0:00:32]}  Qxg3 {[%clk 0:00:20]} 25. Qf4 {[%clk 0:00:22]}  Qg6 {[%clk 0:00:14]} 26. Qd2 {[%clk 0:00:21]}  h5 {[%clk 0:00:12]} 27. Rfe1 {[%clk 0:00:19]}  Kh8 {[%clk 0:00:09]} 28. Rxe5 {[%clk 0:00:17]}  Rxe5 {[%clk 0:00:10]} 29. Nf4 {[%clk 0:00:18]}  Qg5 {[%clk 0:00:08]} 30. Qd8+ {[%clk 0:00:16]}  Kh7 {[%clk 0:00:08]} 31. Qd3+ {[%clk 0:00:17]}  g6 {[%clk 0:00:08]} 32. Qf3 {[%clk 0:00:16]}  Rf5 {[%clk 0:00:08]} 33. Nh3 {[%clk 0:00:14]}  Qf6 {[%clk 0:00:07]} 34. Qe2 {[%clk 0:00:13]}  Kg7 {[%clk 0:00:07]} 35. Rd7 {[%clk 0:00:12]}  g5 {[%clk 0:00:07]} 36. Be4 {[%clk 0:00:10]}  Re5 {[%clk 0:00:05]} 37. Rd5 {[%clk 0:00:08]}  g4 {[%clk 0:00:04]} 38. Rxe5 {[%clk 0:00:01]}  Qxe5 {[%clk 0:00:05]} 39. Kg2 {[%clk 0:00:01]}  gxh3+ {[%clk 0:00:05]} 40. Kxh3 {[%clk 0:00:02]}  Qg5 {[%clk 0:00:05]} 41. Qf3 {[%clk 0:00:02]}  Bd6 {[%clk 0:00:05]} 42. Bf5 {[%clk 0:00:03]}  Kh6 {[%clk 0:00:04]} 43. Be4 {[%clk 0:00:03]}  f6 {[%clk 0:00:05]} 44. Qf5 {[%clk 0:00:04]}  Qxf5+ {[%clk 0:00:05]} 45. Bxf5 {[%clk 0:00:04]}  Kg5 {[%clk 0:00:06]} 46. Be6 {[%clk 0:00:05]}  Bc5 {[%clk 0:00:07]} 47. Bf7 {[%clk 0:00:06]}  Bxf2 {[%clk 0:00:07]} 48. Be6 {[%clk 0:00:06]}  Bc5 {[%clk 0:00:08]} 49. Kg2 {[%clk 0:00:07]}  h4 {[%clk 0:00:08]} 50. Kf3 {[%clk 0:00:07]}  Bd6 {[%clk 0:00:09]} 51. Bd7 {[%clk 0:00:07]}  Bg3 {[%clk 0:00:09]} 52. Be6 {[%clk 0:00:07]}  f5 {[%clk 0:00:10]} 53. Bd7 {[%clk 0:00:08]}  f4 {[%clk 0:00:10]} 54. Be6 {[%clk 0:00:08]}  Kf6 {[%clk 0:00:11]} 55. Bd5 {[%clk 0:00:09]}  Ke5 {[%clk 0:00:12]} 56. Bc6 {[%clk 0:00:09]}  Kd4 {[%clk 0:00:13]} 57. a4 {[%clk 0:00:09]}  h3 {[%clk 0:00:13]} 58. Kg4 {[%clk 0:00:09]}  h2 {[%clk 0:00:14]} 59. Kf3 {[%clk 0:00:08]}  Kc5 {[%clk 0:00:14]} 60. Bb7 {[%clk 0:00:06]}  h1=Q+ {[%clk 0:00:14]} 0-1


[Site "https://www.chess.com"]

[Event "Titled Tuesday Blitz December 27 Early 2022"]
[White "Wagner, Dinara"]
[Black "Shipov, Sergei"]
[WhiteFideId "24157570"]
[BlackFideId "4113624"]
[WhiteElo "2417"]
[BlackElo "2541"]
[Result "0-1"]
[Round "05"]
[TimeControl "180+2"]
[Date "2022.12.27"]
[WhiteClock "0:00:03"]
[BlackClock "0:00:02"]

1. d4 {[%clk 0:02:54]}  d5 {[%clk 0:02:53]} 2. c4 {[%clk 0:02:54]}  e6 {[%clk 0:02:53]} 3. Nf3 {[%clk 0:02:54]}  c5 {[%clk 0:02:54]} 4. cxd5 {[%clk 0:02:54]}  exd5 {[%clk 0:02:55]} 5. g3 {[%clk 0:02:54]}  Nc6 {[%clk 0:02:55]} 6. Bg2 {[%clk 0:02:54]}  Nf6 {[%clk 0:02:56]} 7. O-O {[%clk 0:02:53]}  Be7 {[%clk 0:02:57]} 8. a3 {[%clk 0:02:29]}  O-O {[%clk 0:02:50]} 9. dxc5 {[%clk 0:02:26]}  Bxc5 {[%clk 0:02:50]} 10. b4 {[%clk 0:02:27]}  Bb6 {[%clk 0:02:50]} 11. Bb2 {[%clk 0:02:28]}  Ne4 {[%clk 0:02:44]} 12. Nc3 {[%clk 0:02:18]}  Be6 {[%clk 0:01:46]} 13. Nb5 {[%clk 0:01:59]}  a5 {[%clk 0:01:44]} 14. Nbd4 {[%clk 0:01:42]}  axb4 {[%clk 0:01:42]} 15. Nxc6 {[%clk 0:01:42]}  bxc6 {[%clk 0:01:39]} 16. axb4 {[%clk 0:01:42]}  Qe7 {[%clk 0:01:24]} 17. Rb1 {[%clk 0:01:33]}  Bf5 {[%clk 0:01:02]} 18. Nd4 {[%clk 0:01:28]}  Bd7 {[%clk 0:01:02]} 19. Qc2 {[%clk 0:01:22]}  Rfc8 {[%clk 0:01:01]} 20. Qd3 {[%clk 0:01:15]}  Qxb4 {[%clk 0:00:57]} 21. Ba1 {[%clk 0:00:51]}  Qa5 {[%clk 0:00:51]} 22. e3 {[%clk 0:00:42]}  Re8 {[%clk 0:00:45]} 23. Rfc1 {[%clk 0:00:40]}  Rac8 {[%clk 0:00:44]} 24. Nb3 {[%clk 0:00:39]}  Qa2 {[%clk 0:00:41]} 25. Bxe4 {[%clk 0:00:33]}  Rxe4 {[%clk 0:00:34]} 26. Nd2 {[%clk 0:00:33]}  Bxe3 {[%clk 0:00:18]} 27. Nxe4 {[%clk 0:00:23]}  Bxc1 {[%clk 0:00:18]} 28. Rxc1 {[%clk 0:00:24]}  h6 {[%clk 0:00:12]} 29. Nc5 {[%clk 0:00:22]}  Bh3 {[%clk 0:00:12]} 30. Qd4 {[%clk 0:00:22]}  f6 {[%clk 0:00:12]} 31. Qh4 {[%clk 0:00:21]}  Qa3 {[%clk 0:00:11]} 32. Re1 {[%clk 0:00:16]}  Qa5 {[%clk 0:00:09]} 33. Nd3 {[%clk 0:00:16]}  Bf5 {[%clk 0:00:08]} 34. Rd1 {[%clk 0:00:10]}  Bxd3 {[%clk 0:00:07]} 35. Bxf6 {[%clk 0:00:11]}  Bg6 {[%clk 0:00:05]} 36. Qg4 {[%clk 0:00:11]}  gxf6 {[%clk 0:00:04]} 37. Qxc8+ {[%clk 0:00:10]}  Kg7 {[%clk 0:00:04]} 38. Qd7+ {[%clk 0:00:10]}  Bf7 {[%clk 0:00:04]} 39. Qxc6 {[%clk 0:00:11]}  Qb4 {[%clk 0:00:04]} 40. Qc7 {[%clk 0:00:09]}  Qe4 {[%clk 0:00:04]} 41. Rc1 {[%clk 0:00:09]}  d4 {[%clk 0:00:03]} 42. Ra1 {[%clk 0:00:06]}  Kg6 {[%clk 0:00:02]} 43. Qc1 {[%clk 0:00:05]}  Bd5 {[%clk 0:00:02]} 44. Qb1 {[%clk 0:00:04]}  d3 {[%clk 0:00:02]} 45. f3 {[%clk 0:00:03]}  Qe3+ {[%clk 0:00:01]} 46. Kf1 {[%clk 0:00:02]}  Qxf3+ {[%clk 0:00:01]} 47. Ke1 {[%clk 0:00:03]}  Qe2# {[%clk 0:00:02]} 0-1


[Site "https://www.chess.com"]

[Event "Titled Tuesday Blitz December 27 Early 2022"]
[White "White, John S."]
[Black "Warchol, Kamil"]
[WhiteFideId "2502348"]
[BlackFideId "21858241"]
[WhiteElo "2235"]
[BlackElo "2173"]
[Result "0-1"]
[Round "05"]
[TimeControl "180+2"]
[Date "2022.12.27"]
[WhiteClock "0:00:01"]
[BlackClock "0:00:07"]

1. e4 {[%clk 0:02:59]}  c5 {[%clk 0:02:43]} 2. Nf3 {[%clk 0:02:58]}  d6 {[%clk 0:02:43]} 3. d4 {[%clk 0:02:58]}  cxd4 {[%clk 0:02:44]} 4. Nxd4 {[%clk 0:02:58]}  Nf6 {[%clk 0:02:45]} 5. Nc3 {[%clk 0:02:58]}  Nc6 {[%clk 0:02:45]} 6. Be3 {[%clk 0:02:59]}  Ng4 {[%clk 0:02:44]} 7. Bg5 {[%clk 0:02:55]}  h6 {[%clk 0:02:44]} 8. Bh4 {[%clk 0:02:53]}  g5 {[%clk 0:02:44]} 9. Bg3 {[%clk 0:02:52]}  Bg7 {[%clk 0:02:45]} 10. Nxc6 {[%clk 0:02:41]}  bxc6 {[%clk 0:02:43]} 11. Qd2 {[%clk 0:02:39]}  Qb6 {[%clk 0:02:37]} 12. O-O-O {[%clk 0:02:20]}  Rb8 {[%clk 0:02:28]} 13. b3 {[%clk 0:02:11]}  Qb4 {[%clk 0:01:57]} 14. h3 {[%clk 0:01:43]}  Bxc3 {[%clk 0:01:52]} 15. Qxc3 {[%clk 0:01:20]}  Qxc3 {[%clk 0:01:50]} 16. hxg4 {[%clk 0:01:21]}  Bxg4 {[%clk 0:01:46]} 17. Rd3 {[%clk 0:01:21]}  Qa1+ {[%clk 0:01:44]} 18. Kd2 {[%clk 0:01:20]}  Qd1+ {[%clk 0:01:23]} 19. Kc3 {[%clk 0:01:16]}  Qa1+ {[%clk 0:01:10]} 20. Kd2 {[%clk 0:01:15]}  Qxa2 {[%clk 0:01:08]} 21. e5 {[%clk 0:01:12]}  d5 {[%clk 0:00:56]} 22. e6 {[%clk 0:01:11]}  Bxe6 {[%clk 0:00:50]} 23. Bxb8 {[%clk 0:01:09]}  Bf5 {[%clk 0:00:36]} 24. Rc3 {[%clk 0:01:07]}  Qa5 {[%clk 0:00:33]} 25. Be5 {[%clk 0:00:54]}  f6 {[%clk 0:00:26]} 26. Bd4 {[%clk 0:00:53]}  e5 {[%clk 0:00:25]} 27. Bc5 {[%clk 0:00:42]}  d4 {[%clk 0:00:14]} 28. b4 {[%clk 0:00:36]}  dxc3+ {[%clk 0:00:14]} 29. Kxc3 {[%clk 0:00:36]}  Qa1+ {[%clk 0:00:12]} 30. Kd2 {[%clk 0:00:35]}  Qa2 {[%clk 0:00:11]} 31. Bd3 {[%clk 0:00:33]}  Bxd3 {[%clk 0:00:09]} 32. Kxd3 {[%clk 0:00:34]}  Kf7 {[%clk 0:00:09]} 33. Re1 {[%clk 0:00:28]}  Rd8+ {[%clk 0:00:08]} 34. Kc3 {[%clk 0:00:25]}  Qa3+ {[%clk 0:00:05]} 35. Kc4 {[%clk 0:00:22]}  a5 {[%clk 0:00:05]} 36. Re3 {[%clk 0:00:16]}  Qa2+ {[%clk 0:00:04]} 37. Kc3 {[%clk 0:00:12]}  axb4+ {[%clk 0:00:04]} 38. Bxb4 {[%clk 0:00:12]}  c5 {[%clk 0:00:05]} 39. Bxc5 {[%clk 0:00:10]}  Rc8 {[%clk 0:00:06]} 40. Kb4 {[%clk 0:00:07]}  Rxc5 {[%clk 0:00:06]} 41. Kxc5 {[%clk 0:00:07]}  Qxc2+ {[%clk 0:00:06]} 42. Kb5 {[%clk 0:00:02]}  Qxf2 {[%clk 0:00:07]} 43. Rc3 {[%clk 0:00:01]}  Qxg2 {[%clk 0:00:07]} 0-1


[Site "https://www.chess.com"]

[Event "Titled Tuesday Blitz December 27 Early 2022"]
[White "Zemlyanskii, Ivan"]
[Black "Lenderman, Aleksandr"]
[WhiteFideId "24249971"]
[BlackFideId "2021285"]
[WhiteElo "2300"]
[BlackElo "2572"]
[Result "0-1"]
[Round "05"]
[TimeControl "180+2"]
[Date "2022.12.27"]
[WhiteClock "0:00:01"]
[BlackClock "0:00:44"]

1. d4 {[%clk 0:03:00]}  e6 {[%clk 0:03:00]} 2. c4 {[%clk 0:03:01]}  b6 {[%clk 0:03:00]} 3. Nf3 {[%clk 0:02:57]}  Bb7 {[%clk 0:03:00]} 4. g3 {[%clk 0:02:58]}  Bb4+ {[%clk 0:03:00]} 5. Bd2 {[%clk 0:02:56]}  Bxf3 {[%clk 0:02:59]} 6. exf3 {[%clk 0:02:54]}  Bxd2+ {[%clk 0:03:00]} 7. Qxd2 {[%clk 0:02:54]}  d5 {[%clk 0:03:01]} 8. f4 {[%clk 0:02:48]}  Nf6 {[%clk 0:03:00]} 9. Bg2 {[%clk 0:02:49]}  O-O {[%clk 0:03:00]} 10. O-O {[%clk 0:02:44]}  Nc6 {[%clk 0:03:00]} 11. Nc3 {[%clk 0:02:42]}  Ne7 {[%clk 0:03:00]} 12. Rac1 {[%clk 0:02:36]}  c6 {[%clk 0:03:00]} 13. cxd5 {[%clk 0:02:24]}  cxd5 {[%clk 0:02:59]} 14. Rfe1 {[%clk 0:02:24]}  Qd7 {[%clk 0:02:59]} 15. Bf1 {[%clk 0:02:18]}  Nf5 {[%clk 0:02:54]} 16. Re5 {[%clk 0:01:56]}  Nd6 {[%clk 0:02:49]} 17. Bd3 {[%clk 0:01:54]}  Rfc8 {[%clk 0:02:46]} 18. Ree1 {[%clk 0:01:46]}  g6 {[%clk 0:02:43]} 19. Ne2 {[%clk 0:01:44]}  Qa4 {[%clk 0:02:39]} 20. b3 {[%clk 0:01:19]}  Qa3 {[%clk 0:02:38]} 21. Rxc8+ {[%clk 0:01:17]}  Rxc8 {[%clk 0:02:37]} 22. Rc1 {[%clk 0:01:15]}  Rxc1+ {[%clk 0:02:36]} 23. Nxc1 {[%clk 0:01:16]}  Nde4 {[%clk 0:02:35]} 24. Qc2 {[%clk 0:01:11]}  Qb4 {[%clk 0:02:35]} 25. Bxe4 {[%clk 0:00:56]}  Nxe4 {[%clk 0:02:36]} 26. Qd3 {[%clk 0:00:42]}  Qe1+ {[%clk 0:02:30]} 27. Qf1 {[%clk 0:00:41]}  Qd2 {[%clk 0:02:28]} 28. Nd3 {[%clk 0:00:40]}  Nc3 {[%clk 0:02:16]} 29. Ne5 {[%clk 0:00:24]}  Qxd4 {[%clk 0:02:13]} 30. Qa6 {[%clk 0:00:21]}  Ne4 {[%clk 0:02:10]} 31. Qc8+ {[%clk 0:00:21]}  Kg7 {[%clk 0:02:09]} 32. Qc2 {[%clk 0:00:16]}  Qc3 {[%clk 0:02:08]} 33. Qe2 {[%clk 0:00:15]}  a5 {[%clk 0:02:02]} 34. f3 {[%clk 0:00:13]}  Qa1+ {[%clk 0:01:53]} 35. Kg2 {[%clk 0:00:11]}  Nc3 {[%clk 0:01:53]} 36. Qa6 {[%clk 0:00:11]}  Qxa2+ {[%clk 0:01:51]} 37. Kh3 {[%clk 0:00:11]}  Qc2 {[%clk 0:01:23]} 38. Qxb6 {[%clk 0:00:09]}  Ne2 {[%clk 0:01:20]} 39. Qa7 {[%clk 0:00:02]}  Qf5+ {[%clk 0:01:14]} 40. Kg2 {[%clk 0:00:02]}  g5 {[%clk 0:01:14]} 41. Qxa5 {[%clk 0:00:02]}  gxf4 {[%clk 0:01:14]} 42. Ng4 {[%clk 0:00:03]}  h5 {[%clk 0:01:05]} 43. Qa1+ {[%clk 0:00:00]}  d4 {[%clk 0:01:03]} 44. Nf2 {[%clk 0:00:01]}  fxg3 {[%clk 0:01:01]} 45. hxg3 {[%clk 0:00:02]}  Qe5 {[%clk 0:00:48]} 46. Ne4 {[%clk 0:00:03]}  Nc3 {[%clk 0:00:47]} 47. Nxc3 {[%clk 0:00:02]}  dxc3 {[%clk 0:00:47]} 48. b4 {[%clk 0:00:03]}  Qe2+ {[%clk 0:00:45]} 49. Kh3 {[%clk 0:00:03]}  Qb2 {[%clk 0:00:46]} 50. Qe1 {[%clk 0:00:02]}  c2 {[%clk 0:00:46]} 51. Qd2 {[%clk 0:00:01]}  c1=Q {[%clk 0:00:44]} 0-1


[Site "https://www.chess.com"]